Workbook

Sheet 1
A1: Школа | B1: ГБОУ "Татарско -Елтанская школа -интернат для детей с ОВЗ" | E1: Отд./корп | I1: День | J1: 2025-02-01
J2: ,19,02,22
A3: Прием пищи | B3: Раздел | C3: № рец. | D3: Блюдо | E3: Выход, г | F3: Цена | G3: Калорийность | H3: Белки | I3: Жиры | J3: Углеводы | M3: ,
A4: Завтрак | B4: гор.блюдо | D4: каша молочная овсяная | E4: 200 | F4: 12.36 | G4: 285 | H4: 7.82 | I4: 12.8 | J4: 34.27
B5: гор.напиток | D5: компот из свежих апельсин | E5: 200 | F5: 2.47 | G5: 92.9 | H5: 0 | I5: 0 | J5: 15.2
B6: хлеб | D6: бутерброд с маслом | E6: 30*20 | F6: 6.66 | G6: 220 | H6: 2.02 | I6: 16.64 | J6: 15.21
B7: хлеб | D7: хлеб пшеничный | E7: 70 | F7: 6.06 | G7: 164 | H7: 4.72 | I7: 0.57 | J7: 35.86
F8: =SUM(F4:F7) -> 27.55 | G8: =SUM(G4:G7) -> 762.1 | H8: =SUM(H4:H7) -> 14.56 | I8: =SUM(I4:I7) -> 30.01 | J8: =SUM(J4:J7) -> 100.54
B9: фрукты | D9: яблоко | E9: 120 | F9: 12.80 | G9: 141 | H9: 2.26 | I9: 0.76 | J9: 28.5
B10: сок | D10: сок фруктовый | E10: 200 | F10: 12.80 | G10: 84.8 | H10: 1 | I10: 0 | J10: 20
B11: кондит.изд | D11: вафля | E11: 24 | F11: 1.82 | G11: 190 | H11: 13.8 | I11: 23.78 | J11: 35.97
F12: =SUM(F9:F11) -> 27.42 | G12: =SUM(G9:G11) -> 416 | H12: =SUM(H9:H11) -> 17.06 | I12: =SUM(I9:I11) -> 24.54 | J12: =SUM(J9:J11) -> 84.67
A13: Обед | B13: закуска
B14: 1 блюдо | D14: борщ с капустой и картоф. со сметаной | E14: 200*15*10 | F14: 19.15 | G14: 82.8 | H14: 1.6 | I14: 4 | J14: 10.1
B15: гарнир | D15: каша гречневая рассыпчтая | E15: 150 | F15: 8.77 | G15: 230 | H15: 7.46 | I15: 5.61 | J15: 35.8
B16: птица | D16: птица тушеное в соусе | E16: 100 | F16: 21.58 | G16: 164 | H16: 11.65 | I16: 10.75 | J16: 11.63
B17: гор.напиток | D17: копмот из сухофруктов | E17: 200 | F17: 2.47 | G17: 158 | H17: 0.95 | I17: 0 | J17: 37.14
B18: хлеб белый | D18: хлеб пшеничный | E18: 50 | F18: 2.65 | G18: 117 | H18: 3 | I18: 0 | J18: 25
B19: хлеб черн. | D19: хлеб ржаной | E19: 100 | F19: 5.50 | G19: 228.2 | H19: 5.56 | I19: 1.13 | J19: 49
F21: =SUM(F13:F20) -> 60.12 | G21: =SUM(G13:G20) -> 980 | H21: =SUM(H13:H20) -> 30.6 | I21: =SUM(I13:I20) -> 21.89 | J21: =SUM(J13:J20) -> 168.7
A22: Полдник | B22: выпечка | D22: пирожки запеченые с яблоками | E22: 70 | F22: 5.63 | G22: 200 | H22: 5.2 | I22: 4.9 | J22: 33.9
B23: гор.напиток | D23: молоко | E23: 200 | F23: 13.25 | G23: 104.8 | H23: 5.6 | I23: 4.90 | J23: 9.3
B24: фрукты | D24: банан | E24: 150 | F24: 16.23 | G24: 141 | H24: 2.26 | I24: 0.76 | J24: 28.5
F26: =SUM(F22:F25) -> 35.11 | G26: =SUM(G22:G25) -> 446 | H26: =SUM(H22:H25) -> 13.06 | I26: =SUM(I22:I25) -> 10.56 | J26: =SUM(J22:J25) -> 71.7
A27: Ужин | B27: закуска | D27: овощи натуральные соленые | E27: 60 | F27: 3.52 | G27: 5 | H27: 0.4 | I27: 0.05 | J27: 0.85
B28: 2 блюда | D28: жаркое по домашнему | E28: 200 | F28: 39.31 | G28: 337.1 | H28: 18.5 | I28: 20.6 | J28: 18.94
B29: гарнир
B30: гор.напиток | D30: чай с сахаром | E30: 200 | F30: 1.87 | G30: 40 | H30: 0.53 | I30: 0 | J30: 9.47
B31: хлеб белый | D31: хлеб пшеничный | E31: 50 | F31: 2.65 | G31: 117 | H31: 3.38 | I31: 0.41 | J31: 25.03
B32: х леб черн. | D32: хлеб ржаной | E32: 50 | F32: 2.75 | G32: 114 | H32: 2.78 | I32: 0.56 | J32: 24.7
B33: кисломолоч | D33: кефир | E33: 200 | F33: 19.31 | G33: 106 | H33: 5.8 | I33: 5 | J33: 8
F35: =SUM(F27:F34) -> 69.41 | G35: =SUM(G27:G34) -> 720 | H35: =SUM(H27:H34) -> 31.39 | I35: =SUM(I27:I34) -> 26.62 | J35: =SUM(J27:J34) -> 86.99
F36: =SUM(F35,F26,F21,F12,F8) -> 219.61 | G36: =SUM(G35,G26,G21,G12,G8) -> 3324 | H36: =SUM(H8)+H12+H21+H26+H35 -> 106.67 | I36: =SUM(I35,I26,I21,I12,I8) -> 113.62 | J36: =SUM(J35,J26,J21,J12,J8) -> 512.6
